bitfinex-derivatives/quotes_BTCF0:USTF0_20241013
["timestamp","ask_amount","ask_price","bid_price","bid_amount"]
[1728861037554,0.0707,62718.0,62717.0,0.10896875]
[1728861038245,0.0707,62718.0,62717.0,0.15667569]
[1728861038448,0.1807,62718.0,62717.0,0.15667569]
[1728861038655,0.0707,62718.0,62717.0,0.15667569]
[1728861038856,0.006,62718.0,62717.0,0.15667569]
[1728861039161,0.005,62718.0,62717.0,0.10896875]
[1728861040051,0.005,62718.0,62717.0,0.18860074]
[1728861040252,0.005,62718.0,62717.0,0.29613355]
[1728861040557,0.002,62718.0,62717.0,0.29613355]
[1728861040758,0.004,62718.0,62717.0,0.29613355]
[1728861041156,0.004,62718.0,62717.0,0.21650156]
[1728861041354,0.002,62718.0,62717.0,0.21650156]
[1728861041556,0.004,62718.0,62717.0,0.21650156]
[1728861042955,0.004,62718.0,62717.0,0.229468]
[1728861043155,0.004,62718.0,62717.0,0.22946797]
[1728861044562,0.004,62718.0,62717.0,0.22448089]
[1728861044766,0.004,62718.0,62717.0,0.22946794]
[1728861045462,0.0037,62726.0,62725.0,0.079732]
[1728861045661,0.11239218,62731.0,62730.0,0.079726]
[1728861046069,0.11239218,62731.0,62730.0,0.14348671]
[1728861046359,0.3608,62737.0,62730.0,0.14348671]
[1728861046360,0.3608,62737.0,62731.0,0.079725]
[1728861046561,0.3608,62737.0,62736.0,0.189718]
[1728861046870,0.3608,62737.0,62736.0,0.079718]
[1728861047165,0.3608,62737.0,62736.0,0.15592084]
[1728861047757,0.3608,62737.0,62736.0,0.10813875]
[1728861048266,0.4848,62737.0,62734.0,0.04775962]
[1728861048461,0.07972,62735.0,62734.0,0.04775962]
[1728861048661,0.0644,62736.0,62733.0,0.04775962]
[1728861048662,0.079721,62734.0,62733.0,0.04775962]
[1728861048967,0.221621,62734.0,62733.0,0.04775962]
[1728861049168,0.1419,62734.0,62731.0,0.07595921]
[1728861049368,0.079724,62732.0,62731.0,0.12748462]
[1728861050752,0.083724,62732.0,62731.0,0.12748462]
[1728861050968,0.004,62732.0,62731.0,0.12748462]
[1728861051166,0.008,62732.0,62731.0,0.079725]
[1728861051754,0.004,62732.0,62731.0,0.079725]
[1728861051971,0.008,62732.0,62731.0,0.079725]
[1728861052160,0.004,62732.0,62731.0,0.079725]
[1728861052359,0.008,62732.0,62731.0,0.079725]
[1728861052860,0.007,62732.0,62731.0,0.079725]
[1728861053164,0.007,62732.0,62731.0,0.12744202]
[1728861053363,0.007,62732.0,62731.0,0.079725]
[1728861053759,0.003,62732.0,62731.0,0.079725]
[1728861053961,0.006,62732.0,62731.0,0.079725]
[1728861055470,0.006,62732.0,62731.0,0.08471101]
[1728861055671,0.006,62732.0,62731.0,0.11771101]
[1728861055977,0.006,62732.0,62731.0,0.12568849]
[1728861056769,0.006,62732.0,62731.0,0.11771101]
[1728861059267,0.006,62732.0,62731.0,0.12568839]
[1728861059475,0.006,62732.0,62731.0,0.11771092]
[1728861060375,0.006,62732.0,62731.0,0.12568834]
[1728861061371,0.006,62732.0,62731.0,0.11771092]
[1728861061575,0.006,62732.0,62731.0,0.112725]
[1728861061875,0.006,62732.0,62731.0,0.1654216]
[1728861062762,0.006,62732.0,62731.0,0.17339902]
[1728861063173,0.006,62732.0,62731.0,0.1654216]
[1728861063367,0.003,62732.0,62731.0,0.1654216]
[1728861063561,0.003,62732.0,62731.0,0.1664216]
[1728861063766,0.11,62736.0,62735.0,0.07972]
[1728861064581,0.189718,62736.0,62735.0,0.07972]
[1728861064776,0.11,62736.0,62731.0,0.003]
[1728861064974,0.11,62732.0,62731.0,0.082725]
[1728861065169,0.11,62732.0,62731.0,0.13043569]
[1728861065376,0.0315,62735.0,62733.0,0.079722]
[1728861065377,0.11,62734.0,62733.0,0.079722]
[1728861067878,0.112,62734.0,62733.0,0.079722]
[1728861068065,0.113,62734.0,62733.0,0.079722]
[1728861068669,0.112,62734.0,62733.0,0.079722]
[1728861069181,0.113,62734.0,62733.0,0.079722]
[1728861070668,0.114,62734.0,62733.0,0.079722]
[1728861071079,0.004,62734.0,62733.0,0.079722]
[1728861071772,0.002,62734.0,62733.0,0.079722]
[1728861071972,0.004,62734.0,62733.0,0.079722]
[1728861073077,0.003,62734.0,62733.0,0.12743269]
[1728861073786,0.002,62734.0,62733.0,0.079722]
[1728861074078,0.002,62734.0,62733.0,0.12743269]
[1728861075171,0.002,62734.0,62733.0,0.079722]
[1728861075980,0.002,62734.0,62733.0,0.14347711]
[1728861076276,0.002,62734.0,62733.0,0.079722]
[1728861078475,0.0323,62734.0,62733.0,0.079722]
[1728861080675,0.0323,62734.0,62730.0,0.1083157]
[1728861080877,0.0323,62734.0,62726.0,0.0037]
[1728861080878,0.5808,62731.0,62729.0,0.07973877]
[1728861081075,0.5808,62731.0,62718.0,0.11106738]
[1728861081076,0.22,62730.0,62724.0,0.07973877]
[1728861081278,0.4708,62725.0,62721.0,0.07973877]
[1728861081579,0.4708,62725.0,62718.0,0.10877567]
[1728861081580,0.189736,62722.0,62719.0,0.07973877]
[1728861081771,0.0329,62721.0,62719.0,0.15947877]
[1728861081972,0.0329,62721.0,62720.0,0.079739]
[1728861082167,0.1429,62721.0,62720.0,0.079739]
[1728861083584,0.1429,62721.0,62720.0,0.080739]
[1728861083788,0.11,62721.0,62720.0,0.080739]
[1728861084087,0.111,62722.0,62721.0,0.079738]
[1728861084281,0.111,62722.0,62721.0,0.12751615]
[1728861084481,0.3608,62725.0,62724.0,0.079734]
[1728861084789,0.4708,62725.0,62724.0,0.079734]
[1728861085783,0.4768,62725.0,62724.0,0.079734]
[1728861087984,0.4828,62725.0,62724.0,0.079734]
[1728861088583,0.122,62725.0,62724.0,0.079734]
[1728861094295,0.4828,62725.0,62724.0,0.079734]
[1728861103502,0.122,62725.0,62724.0,0.079734]
[1728861103797,0.4828,62725.0,62724.0,0.079734]
[1728861104296,0.122,62725.0,62724.0,0.079734]
[1728861104491,0.4828,62725.0,62724.0,0.079734]
[1728861106403,0.4828,62725.0,62724.0,0.12751215]
[1728861106698,0.4828,62725.0,62724.0,0.079734]
[1728861107303,0.122,62725.0,62724.0,0.079734]
[1728861107496,0.4828,62725.0,62724.0,0.079734]
[1728861107696,0.122,62725.0,62724.0,0.079734]
[1728861108195,0.4828,62725.0,62724.0,0.079734]
[1728861109812,0.3728,62725.0,62724.0,0.079734]
[1728861109996,0.012,62725.0,62724.0,0.221034]
[1728861110197,0.012,62725.0,62724.0,0.111034]
[1728861111207,0.012,62725.0,62724.0,0.12399882]
[1728861115108,0.012,62725.0,62724.0,0.23085823]
[1728861115497,0.012,62725.0,62724.0,0.31054058]
[1728861115705,0.0037,62731.0,62724.0,0.31054058]
[1728861115706,0.0037,62731.0,62724.0,1.26130423]
[1728861115901,0.00088,62732.0,62731.0,0.079725]
[1728861116204,0.3645,62740.0,62739.0,0.079715]
[1728861116514,0.3645,62740.0,62739.0,0.12749589]
[1728861116515,0.3608,62740.0,62739.0,0.12749589]
[1728861116714,0.3608,62740.0,62739.0,0.079715]
[1728861117008,0.3608,62740.0,62739.0,0.12749589]
[1728861117305,0.3608,62740.0,62739.0,0.079715]
[1728861117509,0.3708,62740.0,62739.0,0.079715]
[1728861118104,0.3688,62740.0,62739.0,0.079715]
[1728861119112,0.3748,62740.0,62739.0,0.079715]
[1728861119713,0.3748,62740.0,62739.0,0.10867793]
[1728861124414,0.014,62740.0,62739.0,0.10867793]
[1728861134622,0.124,62740.0,62739.0,0.10867793]
[1728861135519,0.124,62740.0,62732.0,0.083424]
[1728861135520,0.313713,62740.0,62732.0,0.0037]
[1728861135816,0.11,62733.0,62732.0,0.079724]
[1728861136724,0.11,62733.0,62732.0,0.10793707]
[1728861136923,0.3608,62735.0,62732.0,0.02921307]
[1728861137222,0.3608,62735.0,62734.0,0.079721]
[1728861138626,0.3618,62735.0,62734.0,0.079721]
[1728861139726,0.3638,62735.0,62734.0,0.079721]
[1728861145014,0.003,62735.0,62734.0,0.079721]
[1728861152332,0.113,62735.0,62734.0,0.12754601]
[1728861154739,0.4738,62735.0,62734.0,0.12754601]
[1728861154930,0.55352,62735.0,62734.0,0.04782501]
[1728861155229,0.079721,62734.0,62733.0,0.04782501]
[1728861156437,0.080721,62734.0,62733.0,0.04782501]
[1728861156630,0.080721,62734.0,62732.0,0.079724]
[1728861156837,0.11,62733.0,62732.0,0.079724]
[1728861158126,0.111,62733.0,62732.0,0.079724]
[1728861158535,0.190722,62733.0,62732.0,0.079724]
[1728861158925,0.111,62733.0,62730.0,0.09235709]
[1728861159237,0.079726,62730.0,62726.0,0.08343]
[1728861159540,0.4708,62727.0,62726.0,0.07973]
[1728861159835,0.4708,62727.0,62726.0,0.10884093]
[1728861160831,0.4728,62727.0,62726.0,0.12084093]
[1728861161228,0.002,62727.0,62726.0,0.12084093]
[1728861165340,0.3628,62727.0,62726.0,0.12084093]
[1728861165744,0.3955,62727.0,62726.0,0.12084093]
[1728861166044,0.47523,62727.0,62726.0,0.04111093]
[1728861166453,0.47523,62727.0,62726.0,0.012]
[1728861167036,1.58378,62727.0,62723.0,0.02897795]
[1728861167246,1.58378,62727.0,62720.0,0.04783011]
[1728861167247,0.079738,62721.0,62720.0,0.04783011]
[1728861167441,0.11,62721.0,62717.0,0.04783011]
[1728861167644,0.4708,62718.0,62716.0,0.12757311]
[1728861168451,0.4708,62718.0,62716.0,0.12754167]
[1728861168640,0.4708,62718.0,62714.0,0.04779867]
[1728861168949,0.4708,62718.0,62712.0,0.079749]
[1728861168950,0.189745,62715.0,62712.0,0.079749]
[1728861169249,0.111546,62714.0,62712.0,0.079749]
[1728861169941,0.0318,62714.0,62710.0,0.07650153]
[1728861170249,0.0318,62714.0,62713.0,0.079748]
[1728861170250,0.1418,62714.0,62713.0,0.079748]
[1728861170549,0.1428,62714.0,62713.0,0.079748]
[1728861170951,0.111,62714.0,62713.0,0.079748]
[1728861171149,0.112,62714.0,62713.0,0.079748]
[1728861171951,0.112,62714.0,62713.0,0.082748]
[1728861172543,0.111,62714.0,62713.0,0.085748]
[1728861181251,0.4718,62714.0,62713.0,0.085748]
[1728861182445,0.551546,62714.0,62713.0,0.006]
[1728861183247,0.551546,62714.0,62713.0,0.085748]
[1728861185853,0.551546,62714.0,62713.0,0.082748]
[1728861186155,0.554546,62714.0,62713.0,0.082748]
[1728861186655,0.556546,62714.0,62713.0,0.079748]
[1728861187556,0.4768,62714.0,62713.0,0.079748]
[1728861188543,0.556546,62714.0,62713.0,0.079748]
[1728861188949,0.553546,62714.0,62713.0,0.079748]
[1728861189156,0.556546,62714.0,62713.0,0.079748]
[1728861189346,0.553546,62714.0,62713.0,0.079748]
[1728861189542,0.556546,62714.0,62713.0,0.079748]
[1728861189954,0.553546,62714.0,62713.0,0.079748]
[1728861190155,0.556546,62714.0,62713.0,0.079748]
[1728861190754,0.556546,62714.0,62710.0,0.02870286]
[1728861190755,0.4778,62714.0,62710.0,0.02870286]
[1728861191057,0.22,62711.0,62710.0,0.079752]
[1728861191459,0.11,62711.0,62710.0,0.079752]
[1728861192352,0.11,62711.0,62710.0,0.12755067]
[1728861192555,0.3688,62714.0,62713.0,0.079748]
[1728861192753,0.554546,62714.0,62713.0,0.079748]
[1728861192953,0.583046,62714.0,62713.0,0.079748]
[1728861193952,0.593046,62714.0,62713.0,0.079748]
[1728861194351,0.593046,62714.0,62713.0,0.12754667]
[1728861195352,0.593046,62714.0,62713.0,0.079748]
[1728861196447,0.593046,62714.0,62713.0,0.14346804]
[1728861196845,0.593046,62714.0,62713.0,0.14354137]
[1728861197248,0.560546,62714.0,62713.0,0.12759304]
[1728861197450,0.4808,62714.0,62713.0,0.12759304]
[1728861197652,0.4808,62714.0,62713.0,0.079748]
[1728861197847,0.3708,62714.0,62713.0,0.12760426]
[1728861198052,0.3708,62714.0,62713.0,0.079748]
[1728861199251,0.01,62714.0,62713.0,0.189748]
[1728861199455,0.01,62714.0,62713.0,0.668108]
[1728861199654,0.01,62714.0,62713.0,0.86815536]
[1728861199852,0.01,62714.0,62713.0,0.30207427]
[1728861200053,0.01,62714.0,62713.0,0.20271467]
[1728861200461,0.01,62714.0,62713.0,1.46810923]
[1728861200660,0.01,62714.0,62713.0,1.38835081]
[1728861201367,0.01,62714.0,62713.0,1.46806999]
[1728861202555,0.01,62714.0,62713.0,1.72159385]
[1728861203177,0.01,62714.0,62713.0,1.63688742]
[1728861203362,0.01,62714.0,62713.0,1.82878114]
[1728861203660,0.01,62714.0,62713.0,1.22878114]
[1728861203963,0.01,62714.0,62713.0,1.72159344]
[1728861204170,0.0148,62722.0,62721.0,0.079738]
[1728861204470,0.3608,62724.0,62723.0,0.079735]
[1728861206174,0.014,62724.0,62723.0,0.10876559]
[1728861206768,0.014,62724.0,62723.0,0.10976559]
[1728861206769,0.028,62724.0,62723.0,0.10976559]
[1728861207568,0.014,62724.0,62723.0,0.10876559]
[1728861207759,0.023,62724.0,62723.0,0.10976559]
[1728861208366,0.009,62724.0,62723.0,0.10876559]
[1728861208570,0.017,62724.0,62723.0,0.10976559]
[1728861209173,0.11,62726.0,62725.0,0.079732]
[1728861210372,0.123,62726.0,62725.0,0.081732]
[1728861216372,0.123,62726.0,62725.0,0.191732]
[1728861216373,0.013,62726.0,62725.0,0.191732]
[1728861216878,0.013,62726.0,62725.0,0.081732]
[1728861217573,0.013,62726.0,62725.0,0.191732]
[1728861225283,0.013,62726.0,62725.0,0.081732]
[1728861228188,0.013,62726.0,62725.0,0.191732]
[1728861229287,0.013,62726.0,62725.0,0.25547186]
[1728861232081,0.013,62726.0,62725.0,0.191732]
[1728861232276,0.013,62726.0,62725.0,0.25547186]
[1728861234492,0.013,62726.0,62725.0,0.2395376]
[1728861237391,0.013,62726.0,62725.0,0.191732]
[1728861241900,0.013,62726.0,62725.0,0.081732]
[1728861242198,0.013,62726.0,62725.0,0.191732]
[1728861242394,0.013,62726.0,62725.0,0.25547186]
[1728861243292,0.013,62726.0,62725.0,0.191732]
[1728861245697,0.013,62726.0,62725.0,0.081732]
[1728861246293,0.123,62726.0,62725.0,0.002]
[1728861246497,1.391011,62726.0,62720.0,0.07971918]
[1728861246698,1.391011,62726.0,62719.0,0.09697006]
[1728861246699,0.4708,62721.0,62718.0,0.07971918]
[1728861246900,0.4708,62721.0,62714.0,0.08341918]
[1728861247102,0.11,62715.0,62714.0,0.07971918]
[1728861247306,0.11,62715.0,62714.0,0.20006755]
[1728861247599,0.11,62715.0,62713.0,0.079748]
[1728861248098,0.11,62715.0,62713.0,0.10859079]
[1728861248297,0.11,62715.0,62714.0,0.079746]
[1728861248995,0.111,62715.0,62714.0,0.079746]
[1728861249196,0.111,62715.0,62714.0,0.083746]
[1728861249696,0.1423,62715.0,62714.0,0.079746]
[1728861249888,0.1473,62715.0,62714.0,0.080746]
[1728861250293,0.0373,62715.0,62714.0,0.080746]
[1728861250898,0.0403,62715.0,62714.0,0.080746]
[1728861255900,0.0403,62715.0,62714.0,0.190746]
[1728861256097,0.009,62715.0,62714.0,0.190746]
[1728861257402,0.009,62715.0,62714.0,0.23855664]
[1728861258211,0.009,62715.0,62714.0,0.190746]
[1728861258415,0.009,62715.0,62714.0,0.2037127]
[1728861258910,0.009,62715.0,62714.0,0.25144754]
[1728861259112,0.009,62715.0,62714.0,0.23848084]
[1728861259902,0.009,62715.0,62714.0,0.12848084]
[1728861260101,0.009,62715.0,62714.0,0.23848084]
[1728861264503,0.009,62715.0,62714.0,0.190746]
[1728861277223,0.009,62715.0,62714.0,0.20371286]
[1728861277732,0.009,62715.0,62714.0,0.23541286]
[1728861280529,0.009,62715.0,62714.0,0.34217432]
[1728861281331,0.009,62715.0,62714.0,0.32920746]
[1728861281628,0.009,62715.0,62714.0,0.34217369]
[1728861282816,0.009,62715.0,62714.0,0.342128]
[1728861283923,0.009,62715.0,62714.0,0.702928]
[1728861284732,0.0148,62723.0,62722.0,0.079736]
[1728861284935,0.0037,62731.0,62730.0,0.079726]
[1728861285133,0.3608,62732.0,62731.0,0.079725]
[1728861285628,0.440524,62732.0,62730.0,0.11]
[1728861285827,0.079725,62731.0,62730.0,0.11]
[1728861287230,0.079725,62731.0,62730.0,0.112]
[1728861287231,0.103725,62731.0,62730.0,0.112]
[1728861287926,0.464525,62731.0,62730.0,0.112]
[1728861288130,0.464525,62731.0,62730.0,0.002]
[1728861288328,0.574525,62731.0,62730.0,0.002]
[1728861288735,0.574525,62731.0,62730.0,0.03119363]
[1728861288928,0.574525,62731.0,62730.0,0.002]
[1728861290034,0.574525,62731.0,62730.0,0.081726]
[1728861290642,0.213725,62731.0,62730.0,0.081726]
[1728861290936,0.574525,62731.0,62730.0,0.081726]
[1728861295236,0.213725,62731.0,62730.0,0.081726]
[1728861295432,0.574525,62731.0,62730.0,0.081726]
[1728861296329,0.213725,62731.0,62730.0,0.081726]
[1728861296732,0.574525,62731.0,62730.0,0.081726]
[1728861297247,0.213725,62731.0,62730.0,0.081726]
[1728861297443,0.4948,62731.0,62730.0,0.081726]
[1728861300639,0.3848,62731.0,62730.0,0.081726]
[1728861300953,0.3848,62731.0,62730.0,0.191726]
[1728861301241,0.024,62731.0,62730.0,0.191726]
[1728861304539,0.0111,62740.0,62730.0,1.39292906]
[1728861304742,0.0037,62743.0,62738.0,0.11]
[1728861304946,0.00239133,62744.0,62743.0,0.07971]
[1728861306439,0.01639133,62744.0,62743.0,0.08071]
[1728861307350,0.02839133,62744.0,62743.0,0.08171]
[1728861307946,0.01439133,62744.0,62743.0,0.10905594]
[1728861308241,0.01439133,62744.0,62743.0,0.11005594]
[1728861317046,0.012,62744.0,62743.0,0.11005594]
[1728861328557,0.012,62744.0,62743.0,0.22005594]
[1728861330865,0.012,62744.0,62743.0,0.11005594]
[1728861331066,0.012,62744.0,62743.0,0.22005594]
[1728861333163,0.012,62744.0,62743.0,0.26781642]
[1728861334263,0.012,62744.0,62743.0,0.22005594]
[1728861354088,0.012,62744.0,62743.0,0.26790633]
[1728861354891,0.012,62744.0,62743.0,0.22005594]
[1728861361889,0.012,62744.0,62743.0,0.26790633]
[1728861362680,0.012,62744.0,62743.0,0.22005594]
[1728861376501,0.012,62744.0,62743.0,0.28370188]
[1728861376896,0.012,62744.0,62743.0,0.22005594]
[1728861377591,0.3608,62748.0,62746.0,0.079705]
[1728861377803,0.03741921,62747.0,62746.0,0.079705]
[1728861378411,0.3608,62748.0,62746.0,0.079705]
[1728861378412,0.440503,62748.0,62746.0,0.079705]
[1728861378701,0.03741337,62747.0,62746.0,0.079705]
[1728861378910,0.03741337,62747.0,62746.0,0.189705]
[1728861379304,0.441343,62748.0,62747.0,0.079705]
[1728861379605,0.47793708,62748.0,62747.0,0.079705]
[1728861379809,0.48093708,62748.0,62747.0,0.079705]
[1728861380005,0.082703,62748.0,62747.0,0.079705]
[1728861380405,0.444503,62748.0,62747.0,0.080705]
[1728861381012,0.441503,62748.0,62747.0,0.080705]
[1728861381306,0.444503,62748.0,62747.0,0.081705]
[1728861381510,0.3648,62748.0,62747.0,0.081705]
[1728861383414,0.0414446,62748.0,62747.0,0.081705]
[1728861385001,0.004,62748.0,62747.0,0.081705]
[1728861387610,0.083703,62748.0,62747.0,0.081705]
[1728861388504,0.444503,62748.0,62747.0,0.081705]
[1728861389204,0.3648,62748.0,62747.0,0.081705]
[1728861392214,0.004,62748.0,62747.0,0.081705]
[1728861392415,0.083703,62748.0,62747.0,0.081705]
[1728861395814,0.444503,62748.0,62747.0,0.081705]
[1728861397013,0.083703,62748.0,62747.0,0.081705]
[1728861397303,0.444503,62748.0,62747.0,0.081705]
[1728861397706,0.083703,62748.0,62747.0,0.081705]
[1728861397913,0.444503,62748.0,62747.0,0.081705]
[1728861398108,0.3648,62748.0,62747.0,0.081705]
[1728861399113,0.004,62748.0,62747.0,0.081705]
[1728861399318,0.444503,62748.0,62747.0,0.081705]
[1728861400014,0.12116481,62748.0,62747.0,0.081705]
[1728861400217,0.554503,62748.0,62747.0,0.002]
[1728861400429,0.079715,62739.0,62738.0,0.0037]
[1728861400717,0.079715,62739.0,62735.0,0.12756269]
[1728861400718,0.079719,62736.0,62735.0,0.079718]
[1728861400908,0.22662408,62736.0,62735.0,0.079718]
[1728861401514,0.189719,62736.0,62735.0,0.079718]
[1728861401718,0.079725,62732.0,62731.0,0.079724]
[1728861401906,0.11,62731.0,62730.0,0.079726]
[1728861403012,0.3608,62732.0,62731.0,0.079725]
[1728861405515,0.3608,62732.0,62731.0,0.081725]
[1728861416414,0.440524,62732.0,62731.0,0.081725]
[1728861417229,0.3608,62732.0,62731.0,0.081725]
[1728861424425,0.4708,62732.0,62731.0,0.081725]
[1728861424734,0.550524,62732.0,62731.0,0.081725]
[1728861429821,0.550524,62732.0,62725.0,0.0037]
[1728861429822,0.079726,62730.0,62725.0,0.0037]
[1728861430032,0.660524,62732.0,62719.0,0.07974]
[1728861430033,0.079741,62720.0,62719.0,0.07974]
[1728861430232,0.550541,62720.0,62719.0,0.07974]
[1728861432037,0.550541,62720.0,62719.0,0.08174]
[1728861432336,0.550541,62720.0,62719.0,0.10990742]
[1728861433430,0.550541,62720.0,62719.0,0.03016742]
[1728861436149,0.550541,62720.0,62719.0,0.10990742]
[1728861437643,0.550541,62720.0,62719.0,0.03016742]
[1728861441942,0.4708,62720.0,62712.0,0.0657]
[1728861442143,0.440548,62713.0,62712.0,0.0332]
[1728861442840,0.440548,62713.0,62712.0,0.06198329]
[1728861443659,0.440548,62713.0,62712.0,0.07098329]
[1728861443845,0.440548,62713.0,62712.0,0.07898329]
[1728861444140,0.440548,62713.0,62712.0,0.15873229]
[1728861444345,0.440548,62713.0,62712.0,0.14973229]
[1728861444546,0.441548,62713.0,62712.0,0.07898329]
[1728861446842,0.551548,62713.0,62712.0,0.017]
[1728861447356,0.441548,62713.0,62712.0,0.017]
[1728861447653,0.551548,62713.0,62712.0,0.017]
[1728861448945,0.441548,62713.0,62712.0,0.017]
[1728861450050,0.080748,62713.0,62712.0,0.017]
[1728861450245,0.441548,62713.0,62712.0,0.017]
[1728861453349,0.080748,62713.0,62712.0,0.017]
[1728861453550,0.441548,62713.0,62712.0,0.017]
[1728861454053,0.080748,62713.0,62712.0,0.017]
[1728861454256,0.441548,62713.0,62712.0,0.096749]
[1728861454545,0.441548,62713.0,62711.0,0.02911884]
[1728861454546,0.551548,62713.0,62711.0,0.02911884]
[1728861454757,0.079756,62707.0,62706.0,0.079756]
[1728861454958,0.440556,62707.0,62706.0,0.079756]
[1728861455953,0.550556,62707.0,62706.0,0.079756]
[1728861456853,0.551556,62707.0,62706.0,0.092756]
[1728861457551,0.552556,62707.0,62706.0,0.103756]
[1728861458048,0.4728,62707.0,62706.0,0.103756]
[1728861460340,0.002,62707.0,62706.0,0.103756]
[1728861460545,0.3608,62713.0,62712.0,0.079749]
[1728861460852,0.3608,62713.0,62712.0,0.189749]
[1728861461951,0.3618,62713.0,62712.0,0.204749]
[1728861462143,0.3628,62713.0,62712.0,0.204749]
[1728861463054,0.3628,62713.0,62712.0,0.094749]
[1728861463753,0.4728,62713.0,62712.0,0.094749]
[1728861463949,0.4728,62713.0,62712.0,0.15568757]
[1728861466854,0.112,62713.0,62712.0,0.15568757]
[1728861474559,0.002,62713.0,62712.0,0.15568757]
[1728861481656,0.081748,62713.0,62712.0,0.15568757]
[1728861482348,0.002,62713.0,62712.0,0.15568757]
[1728861483166,0.081748,62713.0,62712.0,0.15568757]
[1728861486461,0.002,62713.0,62712.0,0.15568757]
[1728861488562,0.081748,62713.0,62712.0,0.15568757]
[1728861490063,0.002,62713.0,62712.0,0.15568757]
[1728861490570,0.002,62713.0,62712.0,0.21946684]
[1728861490766,0.002,62713.0,62712.0,0.15568757]
[1728861490975,0.002,62713.0,62712.0,0.21946684]
[1728861491381,0.002,62713.0,62712.0,0.26568757]
[1728861493972,0.002,62713.0,62712.0,0.81289271]
[1728861494163,0.3608,62724.0,62719.0,0.18974]
[1728861494359,0.3608,62724.0,62719.0,0.11]
[1728861494659,0.3608,62724.0,62723.0,0.11]
[1728861494975,0.3608,62724.0,62723.0,0.189735]
[1728861495162,0.440534,62724.0,62723.0,0.189735]
[1728861495569,0.440534,62724.0,62723.0,0.079735]
[1728861496573,0.443534,62724.0,62723.0,0.079735]
[1728861496967,0.553534,62724.0,62718.0,0.17380395]
[1728861497171,0.18974,62720.0,62719.0,0.079739]
[1728861499168,0.18974,62720.0,62719.0,0.080739]
[1728861499969,0.55054,62720.0,62719.0,0.080739]
[1728861500775,0.55054,62720.0,62719.0,0.10963639]
[1728861503769,0.55054,62720.0,62719.0,0.02989739]
[1728861503966,0.55054,62720.0,62713.0,0.0037]
[1728861504174,0.55054,62720.0,62712.0,0.112148]
[1728861504175,0.4708,62714.0,62712.0,0.112148]
[1728861504364,0.079748,62713.0,62712.0,0.14065469]
[1728861506167,0.441548,62713.0,62712.0,0.11625469]
[1728861506374,0.3618,62713.0,62712.0,0.11625469]
[1728861506770,0.3628,62713.0,62712.0,0.12325469]
[1728861506969,0.3628,62713.0,62712.0,0.015]
[1728861506970,0.442548,62713.0,62712.0,0.015]
[1728861507474,0.474248,62713.0,62712.0,0.015]
[1728861510983,0.113448,62713.0,62712.0,0.015]
[1728861511182,0.474248,62713.0,62712.0,0.015]
[1728861514087,0.474248,62713.0,62712.0,0.094749]
[1728861514482,0.474248,62713.0,62712.0,0.015]
[1728861516182,0.113448,62713.0,62712.0,0.015]
[1728861516389,0.474248,62713.0,62712.0,0.015]
[1728861518494,0.113448,62713.0,62712.0,0.015]
[1728861518685,0.474248,62713.0,62712.0,0.015]
[1728861522492,0.584248,62713.0,62712.0,0.015]
[1728861523279,0.079755,62707.0,62706.0,0.0037]
[1728861523485,0.550555,62707.0,62705.0,0.079758]
[1728861524593,0.551555,62707.0,62706.0,0.013]
[1728861524792,0.551555,62707.0,62700.0,0.0477753]
[1728861524793,0.079758,62705.0,62700.0,0.0477753]
[1728861525006,0.079758,62705.0,62696.0,0.03194]
[1728861525007,0.079766,62699.0,62698.0,0.0477753]
[1728861525187,0.5808,62701.0,62691.0,0.11015494]
[1728861525188,0.079767,62698.0,62693.0,0.0477753]
[1728861525388,0.079767,62698.0,62692.0,0.06380395]
[1728861525389,0.079772,62695.0,62694.0,0.079771]
[1728861525786,0.11,62695.0,62694.0,0.079771]
[1728861526083,0.079767,62698.0,62697.0,0.079767]
[1728861526485,0.189767,62698.0,62697.0,0.079767]
[1728861527084,0.11,62698.0,62697.0,0.079767]
[1728861527496,0.111,62698.0,62697.0,0.086767]
[1728861527690,0.112,62698.0,62697.0,0.086767]
[1728861528492,0.115,62698.0,62697.0,0.086767]
[1728861528994,0.114,62698.0,62697.0,0.079767]
[1728861529196,0.115,62698.0,62697.0,0.079767]
[1728861529587,0.114,62698.0,62697.0,0.079767]
[1728861529781,0.117,62698.0,62697.0,0.079767]
[1728861530188,0.114,62698.0,62697.0,0.079767]
[1728861530391,0.122,62698.0,62697.0,0.079767]
[1728861530696,0.119,62698.0,62697.0,0.079767]
[1728861531289,0.123,62698.0,62697.0,0.079767]
[1728861531593,0.202767,62698.0,62697.0,0.079767]
[1728861532294,0.201767,62698.0,62697.0,0.079767]
[1728861533287,0.196767,62698.0,62697.0,0.079767]
[1728861533499,0.201767,62698.0,62697.0,0.079767]
[1728861535092,0.196767,62698.0,62697.0,0.079767]
[1728861535398,0.194767,62698.0,62697.0,0.079767]
[1728861535595,0.201767,62698.0,62697.0,0.079767]
[1728861536601,0.194767,62698.0,62697.0,0.079767]
[1728861536897,0.201767,62698.0,62697.0,0.079767]
[1728861537102,0.562567,62698.0,62697.0,0.079767]
[1728861538398,0.452567,62698.0,62697.0,0.079767]
[1728861539191,0.452567,62698.0,62693.0,0.0302]
[1728861539391,0.079772,62695.0,62694.0,0.079771]
[1728861539592,0.189772,62695.0,62694.0,0.079771]